bitfinex/quotes_BTCUSD_20260310
["timestamp","ask_amount","ask_price","bid_price","bid_amount"]
[1773174197554,0.03,70232.0,70211.0,1e-08]
[1773174197751,0.1139367,70234.0,70204.0,0.0198513]
[1773174197752,0.03,70220.0,70204.0,0.0198513]
[1773174197965,0.03,70220.0,70210.0,0.00144]
[1773174197966,0.17232549,70220.0,70210.0,0.00144]
[1773174198160,0.03,70220.0,70210.0,0.00144]
[1773174198586,0.03,70218.0,70210.0,0.00144]
[1773174198947,0.03007973,70218.0,70210.0,0.00144]
[1773174201060,0.07120782,70217.0,70210.0,0.00144]
[1773174201316,0.03,70216.0,70210.0,0.00144]
[1773174201549,0.05407272,70221.0,70210.0,0.02126572]
[1773174201733,0.07135147,70237.0,70211.0,0.01982572]
[1773174201734,0.07119765,70228.0,70211.0,0.01982572]
[1773174202230,0.03,70227.0,70211.0,0.01982572]
[1773174203201,0.03,70225.0,70211.0,0.01982572]
[1773174205525,0.10120065,70225.0,70211.0,0.01982572]
[1773174211705,0.10142066,70225.0,70211.0,0.01982572]
[1773174213312,0.10142066,70225.0,70211.0,0.0712139]
[1773174213492,0.10142066,70225.0,70212.0,0.01960508]
[1773174213695,0.05961644,70229.0,70212.0,0.01960508]
[1773174214748,0.03,70228.0,70212.0,0.01960508]
[1773174215158,0.03,70226.0,70212.0,0.07121237]
[1773174215374,0.03,70226.0,70213.0,0.01956816]
[1773174216149,0.03,70229.0,70213.0,0.01956816]
[1773174217477,0.03,70229.0,70215.0,0.01953078]
[1773174217640,0.03,70228.0,70217.0,0.01953078]
[1773174218813,0.03,70227.0,70217.0,0.01953078]
[1773174219494,0.03,70227.0,70219.0,0.01949473]
[1773174219898,0.03,70226.0,70219.0,0.01949473]
[1773174220666,0.00022001,70229.0,70219.0,0.01949473]
[1773174222211,0.00022001,70229.0,70220.0,0.01945884]
[1773174224141,0.1185881,70236.0,70221.0,0.07120377]
[1773174224325,0.00038321,70237.0,70222.0,0.02086311]
[1773174224729,0.00022001,70240.0,70222.0,0.02086311]
[1773174226269,0.00022001,70237.0,70222.0,0.02086311]
[1773174226441,0.00022001,70237.0,70224.0,0.01938509]
[1773174227622,0.00022001,70237.0,70224.0,0.02038509]
[1773174229213,0.00022001,70237.0,70226.0,0.01979206]
[1773174230347,0.07130953,70250.0,70227.0,0.05407272]
[1773174230546,0.00144,70256.0,70228.0,0.02123206]
[1773174230547,0.03,70239.0,70228.0,0.02123206]
[1773174231222,0.03,70239.0,70230.0,0.01979206]
[1773174231416,0.05407272,70250.0,70230.0,0.01979206]
[1773174231617,0.56781927,70260.0,70230.0,0.01979206]
[1773174231618,0.12355967,70260.0,70233.0,0.01975328]
[1773174231827,0.07116845,70256.0,70233.0,0.01975328]
[1773174232026,0.06407272,70260.0,70235.0,0.01975328]
[1773174232249,0.06407272,70260.0,70230.0,0.01975328]
[1773174232250,0.05407272,70250.0,70230.0,0.01975328]
[1773174232452,0.02551643,70254.0,70229.0,0.07119565]
[1773174232453,0.05407272,70240.0,70231.0,0.00144]
[1773174232728,0.03,70249.0,70233.0,0.01975328]
[1773174233297,0.03,70248.0,70237.0,0.09106373]
[1773174233514,0.00022001,70245.0,70238.0,0.00144]
[1773174233646,0.00022001,70245.0,70238.0,0.02131618]
[1773174234095,0.03,70248.0,70238.0,0.02131618]
[1773174234241,0.00022001,70252.0,70238.0,0.02131618]
[1773174234457,0.01,70260.0,70238.0,0.02131618]
[1773174234458,0.13523701,70260.0,70241.0,0.01987618]
[1773174234856,0.06407272,70260.0,70241.0,0.01987618]
[1773174235110,0.01,70260.0,70241.0,0.01987618]
[1773174235456,0.18471226,70272.0,70241.0,0.01987618]
[1773174235457,0.11355967,70273.0,70243.0,0.01984398]
[1773174235615,0.1703395,70277.0,70243.0,0.01984398]
[1773174235616,0.1703395,70277.0,70251.0,0.01984398]
[1773174235617,0.07137924,70275.0,70251.0,0.01984398]
[1773174235811,0.07137924,70275.0,70253.0,0.01984398]
[1773174235996,0.00023,70275.0,70253.0,0.01984398]
[1773174236214,0.07137926,70275.0,70253.0,0.01984398]
[1773174236383,0.03,70274.0,70255.0,0.01984398]
[1773174236585,0.03,70274.0,70256.0,0.02128398]
[1773174236927,0.03037419,70274.0,70256.0,0.02128398]
[1773174237357,0.03037419,70274.0,70257.0,0.07116728]
[1773174237569,0.03037419,70274.0,70256.0,0.00144]
[1773174237570,0.05407272,70270.0,70256.0,0.00144]
[1773174237763,0.03,70266.0,70255.0,0.00144]
[1773174237967,0.00144,70273.0,70255.0,0.00144]
[1773174237968,0.03,70259.0,70255.0,0.00144]
[1773174238540,0.03,70259.0,70256.0,0.00144]
[1773174239072,0.03,70258.0,70256.0,0.00144]
[1773174239840,0.10116706,70258.0,70241.0,0.01987835]
[1773174240041,0.10116706,70258.0,70229.0,0.0001712]
[1773174240042,0.03,70257.0,70249.0,0.00144]
[1773174240378,0.03,70257.0,70250.0,0.01987835]
[1773174240778,0.03,70257.0,70251.0,0.00144]
[1773174240982,0.03,70256.0,70251.0,0.00144]
[1773174241182,0.03,70256.0,70251.0,0.02131835]
[1773174241746,0.03,70256.0,70242.0,0.02009252]
[1773174241747,0.1011683,70256.0,70242.0,0.02009252]
[1773174241941,0.03,70255.0,70249.0,0.00144]
[1773174242869,0.03,70255.0,70241.0,0.09127596]
[1773174243068,0.03,70256.0,70241.0,0.091275]
[1773174243269,0.03,70256.0,70249.0,0.00144]
[1773174243587,0.03,70256.0,70242.0,0.07118235]
[1773174243892,0.03,70256.0,70250.0,0.00144]
[1773174244245,0.10116903,70256.0,70241.0,0.02009252]
[1773174244489,0.03,70256.0,70249.0,0.00144]
[1773174244699,0.10116842,70256.0,70249.0,0.00144]
[1773174245604,0.10116842,70256.0,70249.0,0.50144]
[1773174247016,0.03,70255.0,70249.0,0.50144]
[1773174248103,0.03,70254.0,70250.0,0.01997669]
[1773174248897,0.00022001,70256.0,70250.0,0.01997669]
[1773174250344,0.00022001,70256.0,70249.0,0.50144]
[1773174250692,0.00022001,70256.0,70249.0,0.5]
[1773174250899,0.00022001,70256.0,70250.0,0.00144]
[1773174251403,0.03022001,70256.0,70251.0,0.00144]
[1773174252512,0.03,70255.0,70251.0,0.00144]
[1773174253512,0.03022001,70256.0,70251.0,0.00144]
[1773174254772,0.03022001,70256.0,70236.0,0.00562]
[1773174254773,0.03,70253.0,70236.0,0.00562]
[1773174254928,0.02570178,70254.0,70240.0,0.00144]
[1773174254929,0.03,70249.0,70240.0,0.00144]
[1773174255130,0.03,70249.0,70236.0,0.07680823]
[1773174255331,0.03,70249.0,70240.0,0.00144]
[1773174255729,0.03,70249.0,70241.0,0.00144]
[1773174255931,0.03,70248.0,70241.0,0.00144]
[1773174256254,0.03037396,70248.0,70241.0,0.00144]
[1773174257004,0.03,70247.0,70241.0,0.00144]
[1773174257286,0.03,70247.0,70242.0,0.01983049]
[1773174257452,0.07117071,70254.0,70242.0,0.01983049]
[1773174257646,0.00022001,70256.0,70242.0,0.01994258]
[1773174258251,0.03,70255.0,70242.0,0.01994258]
[1773174258987,0.03,70255.0,70243.0,0.07118147]
[1773174259192,0.0711593,70265.0,70244.0,0.0199953]
[1773174259418,0.12521045,70270.0,70244.0,0.0199953]
[1773174259419,0.03022001,70264.0,70244.0,0.0199953]
[1773174259624,0.10138061,70264.0,70244.0,0.0199953]
[1773174260086,0.03022001,70264.0,70244.0,0.0199953]
[1773174260296,0.10138024,70264.0,70244.0,0.0199953]
[1773174260703,0.10138024,70264.0,70246.0,0.0215408]
[1773174261103,0.10138024,70264.0,70248.0,0.0215408]
[1773174261704,0.10138024,70264.0,70249.0,0.00144]
[1773174262069,0.10138024,70264.0,70248.0,0.02150573]
[1773174262276,0.10138024,70264.0,70250.0,0.00144]
[1773174262729,0.10138024,70264.0,70251.0,0.00144]
[1773174263098,0.10138024,70264.0,70248.0,0.02150573]
[1773174263298,0.10138024,70264.0,70252.0,0.00144]
[1773174263702,0.10138024,70264.0,70249.0,0.00144]
[1773174263703,0.03,70261.0,70249.0,0.00144]
[1773174263871,0.03,70261.0,70248.0,0.00144]
[1773174264077,0.03,70261.0,70243.0,0.02151002]
[1773174264278,0.03,70261.0,70244.0,0.02295002]
[1773174264621,0.03,70261.0,70245.0,0.00144]
[1773174264840,0.031,70261.0,70245.0,0.00144]
[1773174265051,0.03,70261.0,70245.0,0.00144]
[1773174265358,0.03,70259.0,70245.0,0.00144]
[1773174266322,0.03,70259.0,70244.0,0.01934102]
[1773174266534,0.03,70259.0,70245.0,0.00144]
[1773174266717,0.03,70254.0,70246.0,0.00144]
[1773174266923,0.03,70254.0,70242.0,0.00011209]
[1773174267314,0.03,70254.0,70243.0,0.00144]
[1773174267527,0.03,70252.0,70243.0,0.00144]
[1773174268802,0.03,70252.0,70242.0,0.00155209]
[1773174270057,0.03,70250.0,70242.0,0.00011209]
[1773174271875,0.10117511,70250.0,70242.0,0.00011209]
[1773174272087,0.03,70252.0,70242.0,0.00011209]
[1773174272310,0.03,70252.0,70242.0,0.0203301]
[1773174274323,0.03,70250.0,70242.0,0.0205301]
[1773174276711,0.1011747,70250.0,70242.0,0.00031209]
[1773174277119,0.1011747,70250.0,70242.0,0.00144]
[1773174277314,0.03,70249.0,70242.0,0.00144]
[1773174278220,0.07117154,70253.0,70242.0,0.00144]
[1773174278221,0.00144,70254.0,70243.0,0.02012207]
[1773174278423,0.17359106,70254.0,70243.0,0.02012207]
[1773174278616,0.03144,70254.0,70243.0,0.02012207]
[1773174278821,0.03144,70254.0,70243.0,0.01512207]
[1773174279258,0.10261046,70254.0,70243.0,0.01512207]
[1773174281051,0.10261046,70254.0,70244.0,0.00144]
[1773174282875,0.10283047,70254.0,70244.0,0.00144]
[1773174283734,0.03,70252.0,70242.0,0.0002]
[1773174283943,0.03,70252.0,70243.0,0.00144]
[1773174284520,0.05405574,70246.0,70214.0,0.01751231]
[1773174284728,0.00023,70250.0,70214.0,0.00037396]
[1773174284729,0.03,70223.0,70214.0,0.00037396]
[1773174286175,0.03,70222.0,70214.0,0.00037396]
[1773174286333,0.03,70222.0,70214.0,0.01785768]
[1773174287139,0.03,70221.0,70214.0,0.01785768]
[1773174287759,0.07119363,70231.0,70215.0,0.01764008]
[1773174287960,0.00144,70230.0,70215.0,0.01764008]
[1773174288158,0.03,70228.0,70215.0,0.01764008]
[1773174288362,0.03,70228.0,70216.0,0.00144]
[1773174288706,0.03,70228.0,70217.0,0.01764008]
[1773174289287,0.03,70229.0,70217.0,0.01764008]
[1773174290271,0.10119652,70229.0,70217.0,0.01764008]
[1773174290492,0.07119552,70230.0,70217.0,0.01764008]
[1773174290696,0.03,70230.0,70218.0,0.01760235]
[1773174291678,0.03,70230.0,70219.0,0.00144]
[1773174292598,0.03,70229.0,70219.0,0.01900332]
[1773174293202,0.03,70229.0,70221.0,0.01756332]
[1773174293743,0.03,70228.0,70221.0,0.01756332]
[1773174293938,0.03,70228.0,70223.0,0.01752654]
[1773174294704,0.03,70227.0,70223.0,0.01752654]
[1773174295113,0.07118703,70238.0,70223.0,0.01752654]
[1773174295996,0.03,70237.0,70223.0,0.01752654]
[1773174297225,0.03,70235.0,70223.0,0.01752654]
[1773174299607,0.03,70234.0,70223.0,0.01752654]
[1773174300661,0.03,70235.0,70223.0,0.01752654]
[1773174301858,0.10119045,70235.0,70223.0,0.01752654]
[1773174306657,0.03,70234.0,70223.0,0.01752654]
[1773174306862,0.07262566,70239.0,70224.0,0.01895321]
[1773174307350,0.07262566,70239.0,70215.0,0.07120945]
[1773174307351,0.03,70229.0,70214.0,0.00057396]
[1773174307560,0.03,70229.0,70201.0,0.10011461]
[1773174307561,0.07262566,70239.0,70201.0,0.0002]
[1773174307563,0.03,70219.0,70201.0,0.0002]
[1773174307767,0.03,70210.0,70201.0,0.0002]
[1773174307898,0.03,70210.0,70201.0,0.00027973]
[1773174308740,0.03,70209.0,70201.0,0.00027973]
[1773174308906,0.00144,70211.0,70201.0,0.00027973]
[1773174310024,0.03144,70211.0,70201.0,0.00027973]
[1773174311612,0.03,70210.0,70201.0,0.00027973]
[1773174311813,0.03,70210.0,70197.0,0.0002]
[1773174312016,0.03,70210.0,70194.0,0.0002]
[1773174312017,0.03,70210.0,70195.0,0.07142986]
[1773174312329,0.03,70210.0,70196.0,0.02031475]
[1773174312741,0.03,70209.0,70196.0,0.02031475]
[1773174312948,0.00144,70213.0,70196.0,0.02031475]
[1773174313145,0.00011209,70213.0,70196.0,0.02031475]
[1773174313354,0.07285152,70213.0,70196.0,0.02031475]
[1773174313554,0.00163959,70213.0,70196.0,0.02031475]
[1773174314182,0.03,70213.0,70198.0,0.0188379]
[1773174314389,0.07119832,70227.0,70200.0,0.16236625]
[1773174314390,0.07096718,70223.0,70200.0,0.16236625]
[1773174314597,0.07119567,70229.0,70202.0,0.0188379]
[1773174314816,0.07119681,70228.0,70204.0,0.0188379]
[1773174315021,0.07119769,70227.0,70204.0,0.0188379]
[1773174315238,0.03,70226.0,70206.0,0.0188379]
[1773174316096,0.03,70227.0,70208.0,0.01880371]
[1773174318600,0.03,70226.0,70210.0,0.01469415]
[1773174318796,0.03,70226.0,70212.0,0.01469415]
[1773174319196,0.0711977,70227.0,70212.0,0.00144]
[1773174319197,0.03,70223.0,70212.0,0.00144]
[1773174319521,0.03,70223.0,70213.0,0.01504152]
[1773174320289,0.00023,70225.0,70213.0,0.01504152]
[1773174320693,0.03,70224.0,70213.0,0.01504152]
[1773174321072,0.00023,70225.0,70213.0,0.07121113]
[1773174321275,0.00023,70225.0,70214.0,0.01504152]
[1773174322691,0.00023,70225.0,70216.0,0.01504152]
[1773174323297,0.00023,70225.0,70217.0,0.00144]
[1773174324349,0.00023,70225.0,70216.0,0.01504152]
[1773174324552,0.00023,70225.0,70217.0,0.00144]
[1773174326424,0.03023,70225.0,70218.0,0.01504152]
[1773174326977,0.03023,70225.0,70217.0,0.00144]
[1773174327326,0.00023,70225.0,70217.0,0.00144]
[1773174329694,0.00045001,70225.0,70217.0,0.00144]
[1773174333154,0.03045001,70225.0,70217.0,0.00144]
[1773174333659,0.06702494,70229.0,70217.0,0.00144]
[1773174334239,0.06702494,70229.0,70217.0,0.01648152]
[1773174334438,0.03,70229.0,70217.0,0.01648152]
[1773174336640,0.10119612,70229.0,70217.0,0.01648152]
[1773174337597,0.00022001,70229.0,70218.0,0.01504152]
[1773174338542,0.00022001,70229.0,70219.0,0.07120579]
[1773174338880,0.00022001,70229.0,70220.0,0.01504152]
[1773174340575,0.00022001,70229.0,70220.0,0.07120403]
[1773174340780,0.11316166,70241.0,70221.0,0.01504152]
[1773174340958,0.03,70239.0,70221.0,0.01504152]
[1773174344122,0.10118591,70239.0,70222.0,0.07120275]
[1773174344327,0.10118591,70239.0,70224.0,0.01504152]
[1773174345347,0.10129807,70239.0,70224.0,0.01504152]
[1773174346022,0.10151808,70239.0,70224.0,0.01504152]
[1773174346406,0.03033217,70239.0,70225.0,0.08624123]
[1773174346611,0.03033217,70239.0,70226.0,0.01504152]
[1773174348250,0.10151781,70239.0,70226.0,0.01504152]
[1773174354774,0.14204465,70242.0,70226.0,0.01504152]
[1773174354982,0.21322735,70242.0,70226.0,0.01515368]
[1773174355182,0.0711827,70242.0,70226.0,0.01515368]
[1773174355405,0.0711827,70242.0,70227.0,0.00144]
[1773174355779,0.07691803,70242.0,70227.0,0.00144]
[1773174355981,0.03,70241.0,70228.0,0.00144]
[1773174356640,0.03,70241.0,70229.0,0.00144]
[1773174356987,0.03,70241.0,70230.0,0.00144]
[1773174358886,0.03,70241.0,70228.0,0.07119611]
[1773174359048,0.03,70241.0,70230.0,0.00144]
[1773174359417,0.03,70241.0,70226.0,0.00011216]
[1773174359418,0.00592281,70238.0,70226.0,0.00011216]
[1773174359621,0.00592281,70235.0,70214.0,0.01527524]
[1773174359828,0.03,70229.0,70214.0,0.01671524]
[1773174359976,0.00598324,70228.0,70216.0,0.00144]
[1773174360186,0.00598324,70228.0,70214.0,0.01527524]
[1773174360394,0.00598324,70228.0,70216.0,0.07120827]
[1773174360761,0.00598324,70228.0,70215.0,0.00144]
[1773174360966,0.03598324,70228.0,70225.0,0.0002]
[1773174361152,0.03,70228.0,70225.0,0.0002]
[1773174362332,0.03,70228.0,70215.0,0.00144]
[1773174363007,0.03,70228.0,70213.0,0.07140988]
[1773174363200,0.00617879,70227.0,70213.0,0.07284988]
[1773174363415,0.00617879,70227.0,70214.0,0.0712108]
[1773174363727,0.00617879,70227.0,70213.0,0.07284988]
[1773174364009,0.1011987,70226.0,70213.0,0.0002]
[1773174364164,0.00623607,70225.0,70213.0,0.0002]
[1773174366124,0.03144,70224.0,70213.0,0.0002]
[1773174366561,0.10264116,70224.0,70213.0,0.0002]
[1773174369988,0.00022001,70228.0,70213.0,0.07141096]
[1773174370217,0.00144,70227.0,70214.0,0.01527524]
[1773174370641,0.00022001,70228.0,70217.0,0.0541063]
[1773174370864,0.00022001,70228.0,70218.0,0.01671524]
[1773174372848,0.00022001,70228.0,70219.0,0.07120579]
[1773174373109,0.00022001,70228.0,70219.0,0.08648103]
[1773174373317,0.00022001,70228.0,70219.0,0.07120579]
[1773174376021,0.00022001,70228.0,70218.0,0.00144]
[1773174376222,0.00022001,70228.0,70218.0,0.07264675]
[1773174377766,0.03022001,70228.0,70218.0,0.07264675]
[1773174378527,0.03022001,70228.0,70218.0,0.08792199]
[1773174378966,0.00022001,70228.0,70218.0,0.08792199]
[1773174379620,0.00011209,70235.0,70219.0,0.01727096]
[1773174380168,0.00011209,70235.0,70221.0,0.01727096]
[1773174383555,0.00011209,70235.0,70222.0,0.08847371]
[1773174385123,0.00011209,70235.0,70223.0,0.01727096]
[1773174385540,0.00011209,70235.0,70224.0,0.07120072]
[1773174385747,0.00011209,70235.0,70224.0,0.07264072]
[1773174385946,0.0003321,70235.0,70224.0,0.07264072]
[1773174386150,0.03,70233.0,70219.0,0.07120579]
[1773174386351,0.0003321,70235.0,70220.0,0.00144]
[1773174386352,0.03,70231.0,70220.0,0.00144]
[1773174386664,0.03,70231.0,70221.0,0.00144]
[1773174386966,0.03,70231.0,70219.0,0.07120579]
[1773174387119,0.03,70231.0,70222.0,0.00144]
[1773174388348,0.03,70231.0,70222.0,0.07264219]
[1773174389760,0.01726651,70232.0,70222.0,0.07264219]
[1773174389967,0.0003321,70235.0,70222.0,0.07264219]
[1773174390160,0.0303321,70235.0,70222.0,0.07264219]
[1773174390372,0.04759861,70235.0,70222.0,0.07264219]
[1773174390572,0.03,70233.0,70222.0,0.07264219]
[1773174390905,0.03,70233.0,70222.0,0.00144]
[1773174391058,0.03,70237.0,70223.0,0.00144]
[1773174391261,0.03,70233.0,70223.0,0.00144]
[1773174391499,0.03,70233.0,70219.0,0.07120559]
[1773174391699,0.03,70233.0,70220.0,0.00144]
[1773174392083,0.03,70233.0,70219.0,0.07120559]
[1773174392413,0.03,70230.0,70221.0,0.07264319]
[1773174392554,0.03,70230.0,70221.0,0.07120319]
[1773174392770,0.03,70230.0,70217.0,0.0003674]
[1773174393117,0.03,70230.0,70217.0,0.07157485]
[1773174393279,0.03,70230.0,70218.0,0.00144]
[1773174393666,0.03,70230.0,70218.0,0.00164]
[1773174393868,0.03,70230.0,70218.0,0.01891096]
[1773174394267,0.00022001,70233.0,70218.0,0.01891096]
[1773174394718,0.03022001,70233.0,70219.0,0.08847675]
[1773174397198,0.03,70232.0,70219.0,0.08847675]
[1773174398322,0.03,70231.0,70219.0,0.08847675]
[1773174399401,0.03022001,70233.0,70219.0,0.08847675]
[1773174402353,0.03022001,70233.0,70220.0,0.01727096]
[1773174404661,0.03,70232.0,70221.0,0.08847473]
[1773174405581,0.00022001,70233.0,70221.0,0.08847473]
[1773174405802,0.00022001,70233.0,70218.0,0.07284601]
[1773174405945,0.03,70232.0,70217.0,0.07120569]
[1773174406158,0.04726651,70228.0,70218.0,0.00144]
[1773174406785,0.04726651,70228.0,70219.0,0.07120579]
[1773174407362,0.03,70232.0,70219.0,0.07120579]
[1773174407642,5.852e-05,70237.0,70221.0,0.01793294]
[1773174408682,5.852e-05,70237.0,70222.0,0.07120275]
[1773174408866,5.852e-05,70237.0,70223.0,0.01793294]
[1773174409127,5.852e-05,70237.0,70224.0,0.00144]
[1773174409326,5.852e-05,70237.0,70225.0,0.01793294]
[1773174410087,5.852e-05,70237.0,70224.0,0.00144]
[1773174410297,0.03,70235.0,70224.0,0.00144]
[1773174410833,0.03,70235.0,70225.0,0.07119971]
[1773174411283,0.03005852,70237.0,70225.0,0.07119971]
[1773174412939,0.01917217,70238.0,70225.0,0.07119971]
[1773174413158,0.01917217,70238.0,70225.0,0.08950121]
[1773174414368,0.00022001,70241.0,70226.0,0.01824298]
[1773174414754,0.04917217,70240.0,70227.0,0.00144]
[1773174414951,0.04917217,70240.0,70228.0,0.07119667]
[1773174416784,0.00022001,70241.0,70228.0,0.07119667]
[1773174416965,0.07161131,70247.0,70231.0,0.01824298]
[1773174417166,0.01917217,70246.0,70232.0,0.00144]
[1773174417390,0.03,70240.0,70219.0,0.0002]
[1773174417591,0.0541063,70242.0,70219.0,0.0002]
[1773174417592,0.04917217,70227.0,70220.0,0.00144]
[1773174417790,0.00144,70233.0,70220.0,0.00144]
[1773174417994,0.01917217,70232.0,70220.0,0.00144]
[1773174418591,0.03,70231.0,70219.0,0.07151768]
[1773174418814,0.04917217,70229.0,70220.0,0.00144]
[1773174419805,0.04917217,70229.0,70219.0,0.00031209]
[1773174420134,0.04917217,70229.0,70219.0,0.00175209]
[1773174420354,0.03,70225.0,70216.0,0.07120793]
[1773174420540,0.04917217,70225.0,70217.0,0.00144]
[1773174420744,0.03,70225.0,70213.0,0.0002]
[1773174420946,0.03,70221.0,70206.0,0.07121816]
[1773174421148,0.04917217,70219.0,70212.0,0.00144]
[1773174421326,0.04917217,70219.0,70212.0,0.07265235]
[1773174421327,0.03,70219.0,70212.0,0.07265235]
[1773174421527,0.03,70219.0,70212.0,0.00144]
[1773174421735,0.03,70219.0,70212.0,0.07265282]
[1773174421920,0.03,70219.0,70212.0,0.00144]
[1773174422114,0.03,70218.0,70212.0,0.00144]
[1773174423416,0.03,70224.0,70212.0,0.00144]
[1773174423880,0.1012009,70224.0,70212.0,0.00144]
[1773174424057,0.03,70224.0,70212.0,0.00144]
[1773174426700,0.1012009,70224.0,70212.0,0.00144]
[1773174426897,0.03,70222.0,70212.0,0.00144]
[1773174428988,0.03,70222.0,70212.0,0.00164]
[1773174431639,0.03,70231.0,70214.0,0.01824298]
[1773174431843,0.03,70227.0,70214.0,0.01824298]
[1773174431993,0.04917217,70227.0,70215.0,0.00144]
[1773174432194,0.04917217,70227.0,70214.0,0.01824298]
[1773174432195,0.04917217,70227.0,70216.0,0.00144]
[1773174432722,0.01917217,70227.0,70216.0,0.00144]
[1773174433572,0.01917217,70227.0,70216.0,0.07264857]
[1773174434338,0.01917217,70227.0,70217.0,0.00144]
[1773174435037,0.07119798,70227.0,70212.0,0.0002]
[1773174435240,0.01917217,70225.0,70213.0,0.00144]
[1773174435584,0.01917217,70225.0,70213.0,0.00156]
[1773174435779,0.01917217,70224.0,70214.0,0.00144]
[1773174436434,0.01917217,70224.0,70214.0,0.00156]
[1773174436780,0.01917217,70224.0,70214.0,0.00012]
[1773174438130,0.01917217,70223.0,70214.0,0.00012]
[1773174438773,0.00144,70226.0,70214.0,0.00012]
[1773174438949,0.00144,70230.0,70215.0,0.01824298]
[1773174440500,0.00144,70230.0,70216.0,0.07120884]
[1773174440796,0.00144,70230.0,70216.0,0.09153451]
[1773174441825,0.07263536,70230.0,70216.0,0.09004936]
[1773174446238,0.09203666,70230.0,70216.0,0.09004936]
[1773174447243,0.0324828,70229.0,70214.0,0.00012]
[1773174447448,0.0194013,70228.0,70215.0,0.00144]
[1773174447596,0.0194013,70228.0,70215.0,1e-08]
[1773174448204,0.07119768,70227.0,70215.0,1e-08]
[1773174448661,0.07119671,70228.0,70216.0,0.02032567]
[1773174451296,0.1434529,70229.0,70216.0,0.09153394]
[1773174451445,0.00144,70229.0,70217.0,0.07120782]
[1773174453273,0.00022001,70228.0,70217.0,0.07120782]
[1773174460829,0.00022001,70228.0,70216.0,0.0915345]
[1773174482898,0.00022001,70228.0,70219.0,0.02012452]
[1773174483599,0.00022001,70228.0,70220.0,0.07120478]
[1773174483977,0.00022001,70228.0,70221.0,0.00144]
[1773174485802,0.00022001,70228.0,70222.0,0.07120275]
[1773174487007,0.00022001,70228.0,70220.0,0.07120275]
[1773174487008,0.00022001,70228.0,70220.0,0.00144]
[1773174494510,0.00022001,70228.0,70220.0,0.07264461]
[1773174496004,0.00022001,70228.0,70220.0,0.07277661]
[1773174497800,0.00022001,70228.0,70220.0,0.001572]
[1773174504684,0.00022001,70228.0,70221.0,0.07120377]
[1773174505064,0.00022001,70228.0,70220.0,0.07277577]
[1773174505461,0.00022001,70228.0,70220.0,0.001572]
[1773174511320,0.00022001,70228.0,70220.0,0.0727765]
[1773174513149,8.515e-05,70231.0,70220.0,0.0727765]
[1773174513366,0.00022001,70241.0,70225.0,0.05409291]
[1773174513565,0.00022001,70241.0,70220.0,0.0727765]
[1773174513566,0.07140352,70241.0,70220.0,0.0727765]
[1773174513809,0.00022001,70241.0,70220.0,0.07286165]
[1773174515196,0.00022001,70241.0,70220.0,0.07386165]
[1773174515512,0.00022001,70228.0,70220.0,0.07386165]
[1773174515807,0.00022001,70228.0,70220.0,0.07286165]
[1773174516209,0.00022001,70228.0,70220.0,0.07386165]
[1773174517612,0.00022001,70228.0,70220.0,0.07286165]
[1773174517808,0.00022001,70228.0,70220.0,0.07386165]
[1773174518016,0.00022001,70228.0,70220.0,0.07286165]
[1773174518507,0.00022001,70228.0,70220.0,0.07386165]
[1773174518715,0.00022001,70228.0,70220.0,0.07286165]
[1773174519030,0.00022001,70228.0,70220.0,0.07386165]
[1773174520932,0.00022001,70228.0,70220.0,0.07286165]
[1773174521940,0.00022001,70228.0,70220.0,0.07386165]
[1773174524547,0.00022001,70236.0,70220.0,0.07386165]
[1773174524734,0.00022001,70236.0,70226.0,0.05409291]
[1773174524933,0.00022001,70236.0,70227.0,0.00144]
[1773174525163,0.00022001,70236.0,70228.0,0.00144]
[1773174525357,0.00022001,70236.0,70229.0,0.00144]
[1773174525553,0.00022001,70236.0,70230.0,0.00144]
[1773174527293,0.00022001,70236.0,70231.0,0.07092496]
[1773174527627,0.00022001,70236.0,70231.0,0.07084819]
[1773174529194,0.00022001,70235.0,70231.0,0.07084819]
[1773174531316,0.00022001,70241.0,70231.0,0.07084819]
[1773174531517,0.00022001,70247.0,70231.0,0.07084819]
[1773174532127,0.000128,70252.0,70231.0,0.07084819]
[1773174532336,0.22884932,70257.0,70237.0,0.05409291]
[1773174532528,0.14232411,70256.0,70238.0,0.00144]
[1773174532935,0.08652521,70257.0,70238.0,0.00144]
[1773174533141,0.000128,70259.0,70238.0,0.00144]
[1773174533464,0.000128,70259.0,70239.0,0.07118552]
[1773174534242,0.00562,70264.0,70239.0,0.07118552]
[1773174534444,0.00562,70264.0,70249.0,0.05409291]
[1773174534645,0.00144,70274.0,70254.0,0.05409291]
[1773174534922,0.00144,70274.0,70248.0,0.000128]
[1773174534923,0.00144,70274.0,70260.0,0.05409291]
[1773174535096,0.00144,70274.0,70261.0,0.00144]
[1773174535670,0.00050202,70273.0,70261.0,0.07260228]
[1773174536286,0.00037402,70273.0,70261.0,0.07260228]
[1773174536571,0.00108322,70273.0,70261.0,0.07260228]
[1773174537050,0.00022001,70262.0,70261.0,0.07260228]
[1773174537206,0.00108322,70273.0,70261.0,0.07260228]
[1773174540912,0.06890031,70277.0,70261.0,0.07260228]
[1773174541113,0.06901244,70277.0,70261.0,0.07260228]
[1773174542331,0.01144,70280.0,70261.0,0.07260228]
[1773174542502,0.0001442,70295.0,70268.0,0.07115614]
[1773174542503,0.07113179,70293.0,70268.0,0.07115614]
[1773174542708,0.07675196,70292.0,70277.0,0.05409291]
[1773174542930,0.07675196,70292.0,70278.0,0.00144]
[1773174544150,0.00036421,70287.0,70279.0,0.00144]
[1773174544405,0.00036421,70287.0,70280.0,0.00144]
[1773174544509,0.00036421,70287.0,70281.0,0.00144]
[1773174544740,0.00036421,70287.0,70280.0,0.00144]
[1773174546745,0.00036421,70287.0,70281.0,0.07114298]
[1773174546938,0.00036421,70287.0,70281.0,0.07106627]
[1773174547117,0.00036421,70287.0,70280.0,0.00144]
[1773174547621,0.00036421,70287.0,70280.0,0.07258381]
[1773174552643,0.00036421,70287.0,70281.0,0.03]
[1773174553286,0.00036421,70287.0,70283.0,0.03]
[1773174554336,0.00036421,70287.0,70282.0,0.03]
[1773174555711,0.00036421,70287.0,70282.0,0.10114191]
[1773174556313,0.00036421,70287.0,70282.0,0.03]